fUST/lending_fUST_20260328
["ID","MTS","AMOUNT","RATE_DAILY","PERIOD"]
[418951004,1774627249463,-300.0,3.059e-05,2]
[418951077,1774627838430,-396.177,2.794e-05,2]
[418951091,1774627841096,-4603.823,2.794e-05,2]
[418951092,1774627841105,-5000.0,2.822e-05,2]
[418951093,1774627841116,-3594.477,2.851e-05,2]
[418951142,1774627843940,-1405.523,2.851e-05,2]
[418951143,1774627843950,-300.0,2.878e-05,2]
[418951144,1774627843962,-582696.27194599,4.038e-05,2]
[418951145,1774627843971,-913.78313172,4.055e-05,2]
[418951146,1774627843982,-501.52700059,4.113e-05,2]
[418951147,1774627843991,-235.55686889,4.136e-05,2]
[418951148,1774627844001,-1008.80196355,4.136e-05,2]
[418951149,1774627844011,-5787835.42738527,4.138e-05,2]
[418951150,1774627844023,-2261.25,4.138e-05,2]
[418951185,1774628342767,-300.0,2.604e-05,2]
[418951186,1774628345063,-300.0,2.604e-05,2]
[418951187,1774628349168,-300.0,2.604e-05,2]
[418951188,1774628369617,-300.0,2.604e-05,2]
[418951189,1774628386005,-300.0,2.604e-05,2]
[418951190,1774628419133,-300.0,2.552e-05,2]
[418951206,1774628705362,-5000.0,2.451e-05,2]
[418951207,1774628705406,-4419.8,2.476e-05,2]
[418951216,1774628937054,-500.0,2.378e-05,2]
[418951249,1774629024398,-4003.94145732,2.33e-05,2]
[418951265,1774629032118,-724.15688385,2.33e-05,2]
[418951290,1774629038530,-271.90165883,2.33e-05,2]
[418951292,1774629038539,-5000.0,2.354e-05,2]
[418951294,1774629038549,-298.0,2.377e-05,2]
[418951296,1774629038558,-4500.0,2.378e-05,2]
[418951298,1774629038568,-8337.83281254,4.038e-05,2]
[418951300,1774629038579,-783.86718746,4.038e-05,2]
[418951302,1774629038589,-609.18875448,4.055e-05,2]
[418951304,1774629038598,-9214.95854527,4.138e-05,2]
[418951306,1774629038609,-13367.51518706,4.138e-05,2]
[418951373,1774629044037,-3164.74506557,4.097e-05,2]
[418951385,1774629046656,-1835.25493443,4.097e-05,2]
[418951386,1774629046667,-406.12583632,4.138e-05,2]
[418951387,1774629046678,-21789.15372116,4.138e-05,2]
[418951388,1774629046897,-2436.51616393,4.138e-05,2]
[418951389,1774629046918,-12220.59014439,4.138e-05,2]
[418951394,1774629622973,-151.0,5.109e-05,29]
[418951395,1774629624995,-149.0,5.109e-05,29]
[418951450,1774630238521,-369.12,2.842e-05,2]
[418951761,1774630246666,-4630.88,2.842e-05,2]
[418951762,1774630246676,-5000.0,2.871e-05,2]
[418951763,1774630246685,-5000.0,2.9e-05,2]
[418951764,1774630246694,-300.0,2.928e-05,2]
[418951765,1774630246703,-170.980546,3.112e-05,2]
[418951766,1774630246712,-7083.70366694,4.038e-05,2]
[418951767,1774630246722,-270.75055754,4.056e-05,2]
[418951768,1774630246731,-99790.48842355,4.138e-05,2]
[418951769,1774630246958,-3822.96432338,4.138e-05,2]
[418951781,1774630252217,-19188.59560937,4.138e-05,2]
[418951840,1774631432567,-551.668,2.737e-05,2]
[418951869,1774631442585,-4448.332,2.737e-05,2]
[418951870,1774631442595,-5000.0,2.765e-05,2]
[418951871,1774631442604,-1784.61317248,2.793e-05,2]
[418951872,1774631442614,-3901.7965056,3.088e-05,2]
[418951873,1774631442624,-180.5003717,4.055e-05,2]
[418951874,1774631442632,-193441.1120631,4.138e-05,2]
[418951931,1774631446998,-3412.8265189,4.097e-05,2]
[418951960,1774632627479,-1426.5488717,2.824e-05,2]
[418951961,1774632628426,223.73177,2.013e-05,2]
[418951966,1774632633561,-3573.4511283,2.824e-05,2]
[418951968,1774632633571,-5000.0,2.853e-05,2]
[418951971,1774632633588,-15270.1520758,3e-05,2]
[418952054,1774632637987,-484947.3779242,3e-05,2]
[418952055,1774632637998,-7634.67993418,4.038e-05,2]
[418952056,1774632638007,-439.0,4.088e-05,2]
[418952057,1774632638020,-184.0,4.088e-05,2]
[418952058,1774632638031,-173.38364683,4.106e-05,2]
[418952059,1774632638042,-180.5003717,4.138e-05,2]
[418952060,1774632638054,-92581.09326673,4.138e-05,2]
[418952097,1774632640539,-9368.75390134,4.138e-05,2]
[418952268,1774632643469,-973.9421243,4.138e-05,2]
[418952269,1774632643527,-1609.90859807,4.138e-05,2]
[418952270,1774632643538,-911.91340463,4.138e-05,2]
[418952276,1774632649153,-180.50037171,4.055e-05,2]
[418952277,1774632649162,-3218.12000107,4.097e-05,2]
[418952278,1774632649174,-1781.87999893,4.097e-05,2]
[418952279,1774632649183,-38542.22375797,4.138e-05,2]
[418952280,1774632649195,-422304.30388265,4.138e-05,2]
[418952281,1774632649207,-51276.46429813,4.138e-05,2]
[418952282,1774632649226,-4759.49999939,4.138e-05,2]
[418952283,1774632649426,-3438.22961107,4.138e-05,2]
[418952284,1774632649437,-3826.95516586,4.138e-05,2]
[418952285,1774632649482,-40502.33502548,4.138e-05,2]
[418952286,1774632656397,151.0,7.7e-05,120]
[418952287,1774632696482,151.0,7.7e-05,120]
[418952288,1774632746247,151.0,7.7e-05,120]
[418952289,1774632786383,151.0,7.7e-05,120]
[418952290,1774633165828,151.0,7.7e-05,120]
[418952291,1774633177548,423.01,7.7e-05,120]
[418952292,1774633177577,44.09,7.7e-05,120]
[418952293,1774633206437,151.0,7.7e-05,120]
[418952294,1774633256519,151.0,7.7e-05,120]
[418952295,1774633256960,-151.0,4.957e-05,30]
[418952296,1774633257653,-149.0,4.957e-05,30]
[418952297,1774633268736,-151.0,4.957e-05,29]
[418952298,1774633269808,-149.0,4.957e-05,29]
[418952299,1774633275724,-151.0,4.957e-05,28]
[418952300,1774633276953,-149.0,4.957e-05,28]
[418952329,1774633296700,151.0,7.7e-05,120]
[418952330,1774633323801,193.68,7.7e-05,120]
[418952331,1774633336579,151.0,7.7e-05,120]
[418952332,1774633370279,235.37,7.7e-05,120]
[418952333,1774633375799,151.0,7.7e-05,120]
[418952334,1774633415216,151.0,7.7e-05,120]
[418952335,1774633497683,-151.0,4.933e-05,30]
[418952336,1774633499094,-149.0,4.933e-05,30]
[418952337,1774633499116,-2.0,4.933e-05,30]
[418952442,1774633838233,-173.38364682,3.121e-05,2]
[418952448,1774633838397,-3512.73959517,3.154e-05,2]
[418952449,1774633838421,-1359.0,3.154e-05,2]
[418952450,1774633838433,-128.26040483,3.154e-05,2]
[418952451,1774633838442,-5000.0,3.186e-05,2]
[418952452,1774633838452,-483.77,3.4e-05,2]
[418952453,1774633838462,-326.96704,3.488e-05,2]
[418952454,1774633838471,-455.044711,3.488e-05,2]
[418952455,1774633838480,-455.0158722,3.488e-05,2]
[418952456,1774633838490,-154.1177613,3.497e-05,2]
[418952457,1774633838499,-160.43,4e-05,2]
[418952458,1774633838508,-439.0,4.048e-05,2]
[418952459,1774633838517,-41710.51669252,4.138e-05,2]
[418952464,1774633842571,-12844.24063546,4.138e-05,2]
[418952507,1774633843533,-2280.80767881,4.138e-05,2]
[418952512,1774633846425,-5000.0,4.097e-05,2]
[418952513,1774633846434,-20952.3146165,4.138e-05,2]
[418952514,1774633846445,-4774.33681506,4.138e-05,2]
[418952515,1774633846456,-29205.1375522,4.138e-05,2]
[418952584,1774635038409,-5000.0,3.588e-05,2]
[418952586,1774635038419,-5000.0,3.624e-05,2]
[418952588,1774635038428,-439.0,4.048e-05,2]
[418952590,1774635038438,-184.0,4.048e-05,2]
[418952592,1774635038447,-27369.9635645,4.138e-05,2]
[418952628,1774635041020,-747.202766,4.138e-05,2]
[418952646,1774635046957,-5000.0,4.138e-05,2]
[418952647,1774635046968,-3157.50038432,4.138e-05,2]
[418952668,1774636224444,-1171.667,3.595e-05,2]
[418952679,1774636232211,-567.76,3.595e-05,2]
[418952698,1774636238482,-378.3118428,3.595e-05,2]
[418952699,1774636238543,-2882.2611572,3.595e-05,2]
[418952700,1774636238552,-613.6348931,3.631e-05,2]
[418952701,1774636238563,-4386.3651069,3.631e-05,2]
[418952702,1774636238572,-184.0,4.058e-05,2]
[418952703,1774636238582,-439.0,4.058e-05,2]
[418952704,1774636238591,-284.60960858,4.138e-05,2]
[418952705,1774636238602,-905.7674063,4.138e-05,2]
[418952759,1774636243957,-99697.80037665,4.138e-05,2]
[418952760,1774636244017,-1625.79918937,4.138e-05,2]
[418952761,1774636244077,-24698.48440651,4.138e-05,2]
[418952762,1774636244093,-841.34677447,4.138e-05,2]
[418952763,1774636244104,-613.54330419,4.138e-05,2]
[418952774,1774636249862,-15019.16536541,4.138e-05,2]
[418952775,1774636249874,-6555.0,4.138e-05,2]
[418952776,1774636250198,-2180.09488481,4.138e-05,2]
[418952815,1774637432544,-612.45539063,3.595e-05,2]
[418952816,1774637432598,-4181.47496677,3.595e-05,2]
[418952841,1774637442981,-206.0696426,3.595e-05,2]
[418952842,1774637442992,-2717.79743202,3.631e-05,2]
[418952843,1774637443005,-2282.20256798,3.631e-05,2]
[418952844,1774637443016,-439.0,4.088e-05,2]
[418952845,1774637443027,-184.0,4.088e-05,2]
[418952848,1774637443038,-16519.13289644,4.138e-05,2]
[418952850,1774637443052,-536.9198889,4.138e-05,2]
[418952924,1774637446764,-3721.36343126,4.138e-05,2]
[418952977,1774638631680,-5000.0,3.595e-05,2]
[418952978,1774638631689,-5000.0,3.631e-05,2]
[418952979,1774638631698,-439.0,4.088e-05,2]
[418952980,1774638631707,-184.0,4.088e-05,2]
[418952981,1774638631716,-12944.4322443,4.138e-05,2]
[418952982,1774638631734,-2334.10422389,4.138e-05,2]
[418953000,1774638638002,-600201.86186941,4.138e-05,2]
[418953001,1774638638018,-600.0,4.22e-05,2]
[418953002,1774638638030,-286.65,4.3e-05,2]
[418953003,1774638638039,-455.044711,4.302e-05,2]
[418953004,1774638638049,-788.0,4.4e-05,2]
[418953005,1774638638059,-227.75,4.5e-05,2]
[418953006,1774638638068,-720.0,4.642e-05,2]
[418953007,1774638638077,-500.0,4.801e-05,2]
[418953008,1774638638087,-300.0,4.972e-05,13]
[418953009,1774638638096,-210.22,4.972e-05,28]
[418953010,1774638638105,-480.8479539,5e-05,2]
[418953011,1774638638115,-1108.38581484,5e-05,2]
[418953012,1774638638126,-1000.60656595,5e-05,2]
[418953013,1774638638135,-1146.42790327,5e-05,2]
[418953014,1774638638144,-500.0,5e-05,2]
[418953015,1774638638154,-500.0,5e-05,2]
[418953016,1774638638163,-500.0,5e-05,2]
[418953017,1774638638172,-500.0,5e-05,2]
[418953018,1774638638183,-367.44210982,5e-05,2]
[418953019,1774638638193,-500.0,5e-05,2]
[418953020,1774638638203,-500.0,5e-05,2]
[418953021,1774638638212,-494.68584382,5e-05,2]
[418953022,1774638638222,-579.84144298,5e-05,2]
[418953023,1774638638231,-500.0,5e-05,2]
[418953024,1774638638240,-1892.85979666,5e-05,2]
[418953025,1774638638250,-864.0,5.106e-05,2]
[418953026,1774638638259,-1000.0,5.617e-05,2]
[418953027,1774638638268,-324.3862674,5.946e-05,2]
[418953028,1774638638278,-455.044711,5.946e-05,2]
[418953029,1774638638287,-1000.0,6.178e-05,2]
[418953030,1774638638296,-244.0,6.178e-05,2]
[418953031,1774638638306,-1000.0,6.796e-05,2]
[418953032,1774638638315,-492.0,6.796e-05,2]
[418953033,1774638638324,-359.67111583,6.849e-05,2]
[418953034,1774638638334,-199.81728657,6.849e-05,2]
[418953035,1774638638343,-263.0253713,6.849e-05,3]
[418953036,1774638638352,-160.78,7e-05,2]
[418953037,1774638638361,-18853.3968217,7e-05,2]
[418953038,1774638638371,-10036.2903382,7e-05,2]
[418953039,1774638638380,-439.0,7.088e-05,2]
[418953040,1774638638389,-184.0,7.088e-05,2]
[418953041,1774638638399,-321.77236641,7.17e-05,2]
[418953042,1774638638408,-1000.0,7.476e-05,2]
[418953043,1774638638418,-791.0,7.476e-05,2]
[418953044,1774638638428,-1216.1650638,7.647e-05,2]
[418953045,1774638638438,-319.07408936,7.65e-05,2]
[418953046,1774638638447,-300.0,8e-05,2]
[418953047,1774638638456,-500.0,8.219e-05,2]
[418953048,1774638638466,-500.0,8.219e-05,2]
[418953049,1774638638476,-500.0,8.219e-05,2]
[418953050,1774638638486,-305.32625191,8.219e-05,2]
[418953051,1774638638495,-1000.0,8.223e-05,2]
[418953052,1774638638504,-533.0,8.223e-05,2]
[418953053,1774638638514,-462.70668132,8.48e-05,2]
[418953054,1774638638525,-1504.88817285,8.5e-05,7]
[418953055,1774638638534,-151.0,9.213e-05,2]
[418953056,1774638638544,-160.0,9.213e-05,2]
[418953057,1774638638553,-151.4342861,9.213e-05,2]
[418953058,1774638638563,-151.0,9.216e-05,2]
[418953059,1774638638572,-303.54589661,0.0001,2]
[418953060,1774638638582,-151.77294831,0.0001,2]
[418953061,1774638638591,-214.83510498,0.0001,2]
[418953062,1774638638601,-526.23,0.0001,2]
[418953063,1774638638610,-300.0,0.0001,2]
[418953064,1774638638619,-186.396651,0.0001,2]
[418953065,1774638638628,-1282.92360783,0.0001,2]
[418953066,1774638638637,-151.0,0.0001,2]
[418953067,1774638638647,-151.0,0.0001,2]
[418953068,1774638638656,-151.0,0.0001,2]
[418953069,1774638638666,-151.0,0.0001,2]
[418953070,1774638638675,-151.0,0.0001,2]
[418953071,1774638638684,-151.0,0.0001,2]
[418953072,1774638638694,-151.0,0.0001,2]
[418953073,1774638638703,-151.0,0.0001,2]
[418953074,1774638638712,-151.0,0.0001,2]
[418953075,1774638638721,-229.80459918,0.0001,2]
[418953076,1774638638731,-439.0,0.00010088,2]
[418953077,1774638638741,-184.0,0.00010088,2]
[418953078,1774638638751,-303.54589661,0.00010715,2]
[418953079,1774638638760,-153.24745756,0.00010958,2]
[418953080,1774638638770,-500.0,0.00010958,2]
[418953081,1774638638779,-500.0,0.00010958,2]
[418953082,1774638638788,-214.95028036,0.00010958,2]
[418953083,1774638638797,-868.63,0.00010958,2]
[418953084,1774638638807,-2772.39,0.00010958,2]
[418953085,1774638638816,-1000.0,0.00010958,2]
[418953086,1774638638825,-500.0,0.00010958,2]
[418953087,1774638638835,-500.0,0.00010958,2]
[418953088,1774638638844,-500.0,0.00010958,2]
[418953089,1774638638853,-500.0,0.00010958,2]
[418953090,1774638638862,-500.0,0.00010958,2]
[418953091,1774638638871,-500.0,0.00010958,2]
[418953092,1774638638882,-173.74005339,0.00010958,2]
[418953093,1774638638892,-521.16,0.00010958,2]
[418953094,1774638638901,-500.0,0.00010958,2]
[418953095,1774638638911,-15380.3736,0.00010959,2]
[418953096,1774638638921,-200.0,0.00010959,2]
[418953097,1774638638930,-1653.14289302,0.00010959,2]
[418953098,1774638638940,-1653.14289302,0.00010959,2]
[418953099,1774638638949,-1653.14289302,0.00010959,2]
[418953100,1774638638958,-1653.14289302,0.00010959,2]
[418953101,1774638638967,-1653.14289302,0.00010959,2]
[418953102,1774638638977,-1653.14289302,0.00010959,2]
[418953103,1774638638987,-1653.14289302,0.00010959,2]
[418953104,1774638638996,-1653.14289302,0.00010959,2]
[418953105,1774638639006,-1653.14289302,0.00010959,2]
[418953106,1774638639015,-1653.14289302,0.00010959,2]
[418953107,1774638639025,-1653.14289302,0.00010959,2]
[418953108,1774638639034,-1653.14289302,0.00010959,2]
[418953109,1774638639043,-1653.14289302,0.00010959,2]
[418953110,1774638639053,-1653.14289302,0.00010959,2]
[418953111,1774638639062,-1653.14289302,0.00010959,2]
[418953112,1774638639071,-1653.14289302,0.00010959,2]
[418953113,1774638639080,-1653.14289302,0.00010959,2]
[418953114,1774638639090,-1653.14289302,0.00010959,2]
[418953115,1774638639099,-1653.14289302,0.00010959,2]
[418953116,1774638639109,-1653.14289302,0.00010959,2]
[418953117,1774638639119,-1653.14289302,0.00010959,2]
[418953118,1774638639128,-1653.14289303,0.00010959,2]
[418953119,1774638639138,-1653.14289303,0.00010959,2]
[418953120,1774638639148,-1653.14289303,0.00010959,2]
[418953121,1774638639157,-1653.14289303,0.00010959,2]
[418953122,1774638639167,-1653.14289303,0.00010959,2]
[418953123,1774638639176,-151.0,0.00011,2]
[418953124,1774638639186,-151.0,0.00011,2]
[418953125,1774638639195,-151.0,0.00011,2]
[418953126,1774638639205,-151.0,0.00011,2]
[418953127,1774638639215,-151.0,0.00011,2]
[418953128,1774638639225,-1323.94431275,0.00011194,2]
[418953129,1774638639235,-500.0,0.00011232,2]
[418953130,1774638639245,-500.0,0.00011232,2]
[418953131,1774638639254,-868.63,0.00011232,2]
[418953132,1774638639264,-2772.39,0.00011232,2]
[418953133,1774638639274,-1000.0,0.00011232,2]
[418953134,1774638639283,-500.0,0.00011232,2]
[418953135,1774638639294,-500.0,0.00011232,2]
[418953136,1774638639304,-500.0,0.00011232,2]
[418953137,1774638639314,-500.0,0.00011232,2]
[418953138,1774638639324,-500.0,0.00011232,2]
[418953139,1774638639334,-500.0,0.00011232,2]
[418953140,1774638639343,-521.16,0.00011232,2]
[418953141,1774638639352,-500.0,0.00011232,2]
[418953142,1774638639362,-214.83510498,0.00011332,7]
[418953143,1774638639371,-151.0,0.000114,2]
[418953144,1774638639381,-151.0,0.000114,2]
[418953145,1774638639390,-151.0,0.000114,2]
[418953146,1774638639399,-151.0,0.000114,2]
[418953147,1774638639409,-303.54589661,0.0001143,7]
[418953148,1774638639418,-151.0,0.000115,2]
[418953149,1774638639428,-214.79222421,0.00011506,2]
[418953150,1774638639438,-500.0,0.00011506,2]
[418953151,1774638639447,-868.63,0.00011506,2]
[418953152,1774638639456,-2772.39,0.00011506,2]
[418953153,1774638639466,-1000.0,0.00011506,2]
[418953154,1774638639475,-500.0,0.00011506,2]
[418953155,1774638639485,-325.15858249,0.00011506,2]
[418953156,1774638639495,-500.0,0.00011506,2]
[418953157,1774638639504,-500.0,0.00011506,2]
[418953158,1774638639514,-500.0,0.00011506,2]
[418953159,1774638639524,-500.0,0.00011506,2]
[418953160,1774638639534,-521.16,0.00011506,2]
[418953161,1774638639544,-500.0,0.00011506,2]
[418953162,1774638639554,-500.0,0.0001178,2]
[418953163,1774638639564,-868.63,0.0001178,2]
[418953164,1774638639574,-2772.39,0.0001178,2]
[418953165,1774638639585,-1000.0,0.0001178,2]
[418953166,1774638639595,-500.0,0.0001178,2]
[418953167,1774638639606,-500.0,0.0001178,2]
[418953168,1774638639615,-500.0,0.0001178,2]
[418953169,1774638639626,-500.0,0.0001178,2]
[418953170,1774638639636,-500.0,0.0001178,2]
[418953171,1774638639646,-521.16,0.0001178,2]
[418953172,1774638639656,-500.0,0.0001178,2]
[418953173,1774638639665,-151.0,0.000118,2]
[418953174,1774638639674,-151.0,0.000118,2]
[418953175,1774638639684,-151.0,0.000118,2]
[418953176,1774638639694,-151.0,0.000119,2]
[418953177,1774638639703,-151.0,0.00012,2]
[418953179,1774638639712,-500.0,0.00012054,2]
[418953181,1774638639722,-868.63,0.00012054,2]
[418953182,1774638639731,-2772.39,0.00012054,2]
[418953184,1774638639741,-735.93181269,0.00012054,2]
[418953186,1774638639750,-500.0,0.00012054,2]
[418953188,1774638639759,-500.0,0.00012054,2]
[418953190,1774638639768,-500.0,0.00012054,2]
[418953192,1774638639778,-500.0,0.00012054,2]
[418953194,1774638639786,-500.0,0.00012054,2]
[418953196,1774638639795,-521.16,0.00012054,2]
[418953198,1774638639804,-500.0,0.00012054,2]
[418953199,1774638639814,-151.0,0.000121,2]
[418953202,1774638639823,-303.54589661,0.00012144,7]
[418953204,1774638639833,-151.0,0.000122,2]
[418953205,1774638639842,-151.0,0.000122,2]
[418953208,1774638639851,-151.0,0.000123,2]
[418953209,1774638639860,-500.0,0.00012328,2]
[418953211,1774638639870,-868.63,0.00012328,2]
[418953213,1774638639878,-2772.39,0.00012328,2]
[418953215,1774638639887,-500.0,0.00012328,2]
[418953217,1774638639896,-500.0,0.00012328,2]
[418953219,1774638639906,-500.0,0.00012328,2]
[418953221,1774638639915,-500.0,0.00012328,2]
[418953223,1774638639924,-500.0,0.00012328,2]
[418953225,1774638639933,-521.16,0.00012328,2]
[418953227,1774638639942,-500.0,0.00012328,2]
[418953229,1774638639951,-151.0,0.000125,2]
[418953231,1774638639961,-151.0,0.000125,2]
[418953233,1774638639970,-11407.88959679,0.000125,2]
[418953235,1774638639979,-151.0,0.000126,2]
[418953237,1774638639988,-151.0,0.000126,2]
[418953239,1774638639998,-868.63,0.00012602,2]
[418953241,1774638640007,-2772.39,0.00012602,2]
[418953243,1774638640016,-500.0,0.00012602,2]
[418953245,1774638640025,-500.0,0.00012602,2]
[418953247,1774638640034,-500.0,0.00012602,2]
[418953249,1774638640043,-500.0,0.00012602,2]
[418953251,1774638640052,-468.67284618,0.00012602,2]
[418953253,1774638640061,-521.16,0.00012602,2]
[418953255,1774638640071,-500.0,0.00012602,2]
[418953257,1774638640080,-214.83510498,0.00012663,7]
[418953259,1774638640090,-151.0,0.000127,2]
[418953261,1774638640100,-303.54589661,0.00012859,7]
[418953263,1774638640109,-868.63,0.00012876,2]
[418953265,1774638640118,-2772.39,0.00012876,2]
[418953267,1774638640128,-500.0,0.00012876,2]
[418953269,1774638640138,-500.0,0.00012876,2]
[418953271,1774638640147,-500.0,0.00012876,2]
[418953273,1774638640156,-500.0,0.00012876,2]
[418953274,1774638640166,-521.16,0.00012876,2]
[418953275,1774638640175,-500.0,0.00012876,2]
[418953276,1774638640184,-151.0,0.000129,2]
[418953277,1774638640193,-5399.45609038,0.000129,2]
[418953278,1774638640202,-5399.45609034,0.000129,2]
[418953279,1774638640211,-5399.45609034,0.000129,2]
[418953280,1774638640221,-19148.17706955,0.00013,2]
[418953281,1774638640230,-151.0,0.00013,2]
[418953282,1774638640239,-151.0,0.00013,2]
[418953283,1774638640249,-151.0,0.00013,2]
[418953284,1774638640258,-5399.45609034,0.00013026,2]
[418953285,1774638640351,-439.0,0.00013088,2]
[418953287,1774638640361,-180.099,0.00013088,2]
[418953289,1774638640370,-868.63,0.0001315,2]
[418953291,1774638640379,-2772.39,0.0001315,2]
[418953293,1774638640389,-500.0,0.0001315,2]
[418953295,1774638640398,-500.0,0.0001315,2]
[418953297,1774638640407,-500.0,0.0001315,2]
[418953299,1774638640416,-500.0,0.0001315,2]
[418953301,1774638640424,-521.16,0.0001315,2]
[418953303,1774638640433,-500.0,0.0001315,2]
[418953305,1774638640442,-151.0,0.000132,2]
[418953307,1774638640451,-151.0,0.000133,2]
[418953309,1774638640460,-151.0,0.000133,2]
[418953311,1774638640469,-151.0,0.000134,2]
[418953313,1774638640478,-151.0,0.000134,2]
[418953315,1774638640487,-868.63,0.00013424,2]
[418953317,1774638640496,-2772.39,0.00013424,2]
[418953319,1774638640505,-500.0,0.00013424,2]
[418953321,1774638640515,-500.0,0.00013424,2]
[418953323,1774638640524,-500.0,0.00013424,2]
[418953325,1774638640532,-500.0,0.00013424,2]
[418953327,1774638640542,-521.16,0.00013424,2]
[418953329,1774638640551,-507.09900555,0.00013424,2]
[418953331,1774638640560,-170.59558777,0.000135,5]
[418953333,1774638640570,-303.54589661,0.00013574,14]
[418953335,1774638640579,-151.0,0.000136,2]
[418953337,1774638640588,-392.1660154,0.00013698,2]
[418953339,1774638640597,-1000.0,0.00013698,2]
[418953341,1774638640606,-1000.0,0.00013698,2]
[418953343,1774638640615,-1000.0,0.00013698,2]
[418953345,1774638640624,-1000.0,0.00013698,2]
[418953347,1774638640633,-1000.0,0.00013698,2]
[418953349,1774638640642,-1000.0,0.00013698,2]
[418953351,1774638640651,-1000.0,0.00013698,2]
[418953353,1774638640660,-1000.0,0.00013698,2]
[418953355,1774638640670,-1000.0,0.00013698,2]
[418953356,1774638640679,-1000.0,0.00013698,2]
[418953358,1774638640688,-1000.0,0.00013698,2]
[418953360,1774638640697,-868.63,0.00013698,2]
[418953362,1774638640707,-2772.39,0.00013698,2]
[418953364,1774638640716,-500.0,0.00013698,2]
[418953366,1774638640725,-500.0,0.00013698,2]
[418953368,1774638640734,-500.0,0.00013698,2]
[418953370,1774638640744,-500.0,0.00013698,2]
[418953372,1774638640753,-449.48307157,0.00013698,2]
[418953374,1774638640762,-521.16,0.00013698,2]
[418953376,1774638640771,-2353.39,0.00013698,2]
[418953378,1774638640782,-2353.39,0.00013698,2]
[418953381,1774638640792,-2353.39,0.00013698,2]
[418953383,1774638640802,-2353.39,0.00013698,2]
[418953385,1774638640811,-2353.39,0.00013698,2]
[418953386,1774638640820,-2353.39,0.00013698,2]
[418953388,1774638640829,-2353.39,0.00013698,2]
[418953390,1774638640840,-2353.39,0.00013698,2]
[418953392,1774638640848,-2353.39,0.00013698,2]
[418953394,1774638640858,-2353.39,0.00013698,2]
[418953396,1774638640866,-2353.39,0.00013698,2]
[418953398,1774638640875,-2353.39,0.00013698,2]
[418953400,1774638640885,-2353.39,0.00013698,2]
[418953403,1774638640896,-2353.39,0.00013698,2]
[418953405,1774638640907,-2353.39,0.00013698,2]
[418953407,1774638640916,-2353.39,0.00013698,2]
[418953409,1774638640927,-2353.39,0.00013698,2]
[418953410,1774638640937,-2353.39,0.00013698,2]
[418953412,1774638640947,-2353.39,0.00013698,2]
[418953414,1774638640956,-2353.39,0.00013698,2]
[418953416,1774638640965,-2353.39,0.00013698,2]
[418953418,1774638640974,-2353.39,0.00013698,2]
[418953420,1774638640983,-2353.39,0.00013698,2]
[418953421,1774638640993,-2353.43476288,0.00013698,2]
[418953423,1774638641002,-156.0,0.00013699,2]
[418953424,1774638641011,-156.0,0.00013699,2]
[418953425,1774638641019,-156.0,0.00013699,2]
[418953426,1774638641028,-180.05041412,0.00013699,2]
[418953427,1774638641038,-3657.63619,0.00013699,2]
[418953428,1774638641048,-566.3815928,0.00013699,2]
[418953429,1774638641059,-1000.0,0.00013699,2]
[418953430,1774638641070,-1000.0,0.00013699,2]
[418953431,1774638641081,-185.09435252,0.00013699,2]
[418953432,1774638641091,-151.0,0.000137,2]
[418953433,1774638641100,-151.0,0.000137,2]
[418953434,1774638641111,-151.0,0.000138,2]
[418953435,1774638641120,-151.0,0.000139,2]
[418953436,1774638641129,-218.9490011,0.00013968,2]
[418953437,1774638641138,-457.2867975,0.00013968,2]
[418953438,1774638641147,-868.63,0.00013972,2]
[418953439,1774638641157,-2772.39,0.00013972,2]
[418953440,1774638641166,-500.0,0.00013972,2]
[418953441,1774638641175,-500.0,0.00013972,2]
[418953442,1774638641186,-500.0,0.00013972,2]